[Event "IV Pullman Rapid 2022"]
[Site "Riga, Latvia"]
[Date "2022.02.19"]
[Round "1.1"]
[White "Podojniks, Marks Ernests"]
[Black "Shirov, Alexei"]
[Result "0-1"]
[TimeControl "600+5"]
[BlackTitle "GM"]
[WhiteElo "1438"]
[BlackElo "2614"]

1. e4 {[%clk 00:10:09]} c5 {[%clk 00:10:08]} {[%emt 00:00:03]} 2. Nf3 {[%clk
00:10:12]} {[%emt 00:00:02]} d6 {[%clk 00:10:11]} 3. d4 {[%clk 00:10:16]}
{[%emt 00:00:02]} cxd4 {[%clk 00:10:14]} {[%emt 00:00:02]} 4. Nxd4 {[%clk
00:10:19]} {[%emt 00:00:01]} Nf6 {[%clk 00:10:18]} {[%emt 00:00:01]} 5. Nc3
{[%clk 00:10:23]} {[%emt 00:00:02]} g6 {[%clk 00:10:21]} {[%emt 00:00:01]} 6.
Bb5+ {[%clk 00:10:21]} {[%emt 00:00:07]} Nbd7 {[%clk 00:10:13]} {[%emt
00:00:13]} 7. O-O {[%clk 00:09:45]} {[%emt 00:00:41]} Bg7 {[%clk 00:10:15]}
{[%emt 00:00:02]} 8. Re1 {[%clk 00:09:40]} {[%emt 00:00:11]} O-O {[%clk
00:10:17]} {[%emt 00:00:03]} 9. Be3 {[%clk 00:08:28]} {[%emt 00:01:16]} a6
{[%clk 00:09:53]} {[%emt 00:00:29]} 10. Bxd7 {[%clk 00:08:16]} {[%emt
00:00:18]} Bxd7 {[%clk 00:09:47]} {[%emt 00:00:10]} 11. h3 {[%clk 00:08:17]}
{[%emt 00:00:05]} Rc8 {[%clk 00:09:50]} {[%emt 00:00:03]} 12. Bg5 {[%clk
00:07:38]} {[%emt 00:00:42]} Qb6 {[%clk 00:09:34]} {[%emt 00:00:21]} 13. Rb1
{[%clk 00:07:12]} {[%emt 00:00:32]} e6 {[%clk 00:08:46]} {[%emt 00:00:53]} 14.
Be3 {[%clk 00:05:15]} {[%emt 00:02:01]} Qc7 {[%clk 00:08:47]} {[%emt 00:00:04]}
15. Qd2 {[%clk 00:04:35]} {[%emt 00:00:45]} b5 {[%clk 00:08:11]} {[%emt
00:00:40]} 16. a3 {[%clk 00:04:27]} {[%emt 00:00:14]} Rfe8 {[%clk 00:07:07]}
{[%emt 00:01:09]} 17. Bh6 {[%clk 00:03:53]} {[%emt 00:00:39]} Bh8 {[%clk
00:07:10]} {[%emt 00:00:02]} 18. Rbd1 {[%clk 00:03:01]} {[%emt 00:00:57]} Red8
{[%clk 00:05:27]} {[%emt 00:01:48]} 19. Bg5 {[%clk 00:02:48]} {[%emt 00:00:18]}
Be8 {[%clk 00:05:30]} {[%emt 00:00:02]} 20. Qe3 {[%clk 00:02:11]} {[%emt
00:00:42]} Rd7 {[%clk 00:05:25]} {[%emt 00:00:09]} 21. Qf3 {[%clk 00:01:37]}
{[%emt 00:00:39]} Nh5 {[%clk 00:04:26]} {[%emt 00:01:04]} 22. g4 {[%clk
00:00:31]} {[%emt 00:01:11]} Ng7 {[%clk 00:04:29]} {[%emt 00:00:02]} 23. Bf6
{[%clk 00:00:28]} {[%emt 00:00:08]} Qb7 {[%clk 00:04:30]} {[%emt 00:00:03]} 24.
Rd2 {[%clk 00:00:14]} {[%emt 00:00:20]} b4 {[%clk 00:04:00]} {[%emt 00:00:36]}
25. axb4 {[%clk 00:00:13]} {[%emt 00:00:06]} Qxb4 {[%clk 00:04:03]} {[%emt
00:00:01]} 26. Nb3 {[%clk 00:00:07]} {[%emt 00:00:11]} a5 {[%clk 00:03:57]}
{[%emt 00:00:10]} 27. Rd4 {[%clk 00:00:07]} {[%emt 00:00:06]} Qb6 {[%clk
00:03:54]} {[%emt 00:00:08]} 28. Na4 {[%clk 00:00:07]} {[%emt 00:00:05]} Qa7
{[%clk 00:03:51]} {[%emt 00:00:08]} 29. Red1 {[%clk 00:00:08]} {[%emt
00:00:05]} Rxc2 {[%clk 00:03:03]} {[%emt 00:00:52]} 30. Rxd6 {[%clk 00:00:10]}
{[%emt 00:00:03]} Rxd6 {[%clk 00:03:06]} {[%emt 00:00:01]} 31. Rxd6 {[%clk
00:00:13]} {[%emt 00:00:02]} Bxa4 {[%clk 00:03:10]} {[%emt 00:00:01]} 32. Rd8+
{[%clk 00:00:16]} {[%emt 00:00:03]} Ne8 {[%clk 00:03:13]} {[%emt 00:00:02]} 33.
Bxh8 {[%clk 00:00:18]} {[%emt 00:00:03]} Kxh8 {[%clk 00:03:09]} {[%emt
00:00:09]} 34. Qf6+ {[%clk 00:00:08]} {[%emt 00:00:15]} Kg8 {[%clk 00:03:13]}
{[%emt 00:00:01]} 35. Nd4 {[%clk 00:00:06]} {[%emt 00:00:07]} Rxb2 {[%clk
00:03:07]} {[%emt 00:00:11]} 36. Nxe6 {[%emt 00:00:06]} Rb1+ {[%emt 00:00:05]}
37. Kg2 {[%emt 00:00:02]} fxe6 {[%emt 00:00:03]} 0-1

[Event "IV Pullman Rapid 2022"]
[Site "Riga, Latvia"]
[Date "2022.02.19"]
[Round "1.2"]
[White "Mustaps, Matiss"]
[Black "Tolmacevs, Romans"]
[Result "1-0"]
[TimeControl "600+5"]
[WhiteTitle "FM"]
[WhiteElo "2393"]
[BlackElo "1429"]

1. e4 {[%clk 00:10:07]} {[%emt 00:00:02]} c6 {[%clk 00:10:09]} {[%emt
00:00:02]} 2. d4 {[%clk 00:10:11]} {[%emt 00:00:01]} d5 {[%clk 00:10:13]}
{[%emt 00:00:02]} 3. Nc3 {[%clk 00:10:15]} {[%emt 00:00:01]} dxe4 {[%clk
00:10:16]} {[%emt 00:00:02]} 4. Nxe4 {[%clk 00:10:19]} {[%emt 00:00:01]} Bf5
{[%clk 00:10:19]} {[%emt 00:00:02]} 5. Ng3 {[%clk 00:10:23]} Bg6 {[%clk
00:10:22]} {[%emt 00:00:02]} 6. Bc4 {[%clk 00:10:27]} {[%emt 00:00:01]} e6
{[%clk 00:10:22]} {[%emt 00:00:05]} 7. N1e2 {[%clk 00:10:30]} {[%emt 00:00:02]}
Nf6 {[%clk 00:10:14]} {[%emt 00:00:13]} 8. O-O {[%clk 00:10:33]} {[%emt
00:00:02]} Bd6 {[%clk 00:09:57]} {[%emt 00:00:21]} 9. f4 {[%clk 00:10:36]}
{[%emt 00:00:02]} O-O {[%clk 00:09:01]} {[%emt 00:01:01]} 10. f5 {[%clk
00:10:40]} {[%emt 00:00:02]} exf5 {[%clk 00:09:04]} {[%emt 00:00:02]} 11. Nxf5
{[%clk 00:10:43]} {[%emt 00:00:01]} Qc7 {[%clk 00:08:42]} {[%emt 00:00:27]} 12.
Nxd6 {[%clk 00:08:40]} {[%emt 00:02:08]} Qxd6 {[%clk 00:08:45]} {[%emt
00:00:02]} 13. Bf4 {[%clk 00:08:44]} {[%emt 00:00:01]} Qb4 {[%clk 00:08:13]}
{[%emt 00:00:38]} 14. Bb3 {[%clk 00:08:41]} {[%emt 00:00:08]} a5 {[%clk
00:07:04]} {[%emt 00:01:14]} 15. a3 {[%clk 00:08:14]} {[%emt 00:00:32]} Qe7
{[%clk 00:06:32]} {[%emt 00:00:36]} 16. Bg5 {[%clk 00:07:39]} {[%emt 00:00:39]}
Nbd7 {[%clk 00:06:02]} {[%emt 00:00:36]} 17. Nf4 {[%clk 00:07:42]} {[%emt
00:00:01]} Qe4 {[%clk 00:04:55]} {[%emt 00:01:12]} 18. c3 {[%clk 00:06:44]}
{[%emt 00:01:03]} Rfe8 {[%clk 00:03:06]} {[%emt 00:01:53]} 19. Rf2 {[%clk
00:06:34]} {[%emt 00:00:15]} h6 {[%clk 00:02:37]} {[%emt 00:00:35]} 20. Bxf6
{[%clk 00:04:52]} {[%emt 00:01:47]} Nxf6 {[%clk 00:02:31]} {[%emt 00:00:11]} 21.
Bc2 {[%clk 00:04:54]} {[%emt 00:00:03]} Qe3 {[%clk 00:02:09]} {[%emt 00:00:27]}
22. Nxg6 {[%clk 00:04:54]} {[%emt 00:00:06]} fxg6 {[%clk 00:02:03]} {[%emt
00:00:11]} 23. Bxg6 {[%clk 00:04:50]} {[%emt 00:00:09]} Rf8 {[%clk 00:01:53]}
{[%emt 00:00:15]} 24. Qd2 {[%clk 00:04:04]} {[%emt 00:00:51]} Qe7 {[%clk
00:01:10]} {[%emt 00:00:48]} 25. Re1 {[%clk 00:04:05]} {[%emt 00:00:04]} Qc7
{[%clk 00:01:01]} {[%emt 00:00:14]} 26. h3 {[%clk 00:03:53]} {[%emt 00:00:16]}
Qg3 {[%clk 00:00:48]} {[%emt 00:00:19]} 27. Qd3 {[%clk 00:03:30]} {[%emt
00:00:28]} Qd6 {[%clk 00:00:34]} {[%emt 00:00:18]} 28. Ref1 {[%clk 00:03:20]}
{[%emt 00:00:16]} b5 {[%clk 00:00:25]} {[%emt 00:00:15]} 29. a4 {[%clk
00:02:47]} {[%emt 00:00:38]} bxa4 {[%clk 00:00:23]} {[%emt 00:00:07]} 30. Qc4+
{[%clk 00:02:51]} Kh8 {[%clk 00:00:24]} {[%emt 00:00:03]} 31. Qxa4 {[%clk
00:02:54]} {[%emt 00:00:02]} c5 {[%clk 00:00:22]} {[%emt 00:00:07]} 32. dxc5
{[%clk 00:02:12]} {[%emt 00:00:47]} Qxc5 {[%clk 00:00:26]} {[%emt 00:00:01]} 33.
Qd4 {[%clk 00:02:16]} Qc6 {[%clk 00:00:24]} {[%emt 00:00:08]} 34. Be4 {[%clk
00:01:56]} {[%emt 00:00:25]} Qe6 {[%clk 00:00:21]} {[%emt 00:00:08]} 35. Bxa8
{[%clk 00:01:59]} {[%emt 00:00:03]} Rxa8 {[%clk 00:00:25]} {[%emt 00:00:01]} 36.
Rxf6 {[%clk 00:01:58]} {[%emt 00:00:05]} gxf6 {[%clk 00:00:26]} {[%emt
00:00:05]} 37. Rxf6 {[%clk 00:02:01]} {[%emt 00:00:02]} 1-0

[Event "IV Pullman Rapid 2022"]
[Site "Riga, Latvia"]
[Date "2022.02.19"]
[Round "1.3"]
[White "Jenavs, Ernests"]
[Black "Golubovskis, Maksims"]
[Result "0-1"]
[TimeControl "600+5"]
[BlackTitle "FM"]
[WhiteElo "1429"]
[BlackElo "2185"]

1. d4 {[%clk 00:10:08]} {[%emt 00:00:01]} Nf6 {[%clk 00:10:08]} {[%emt
00:00:02]} 2. c4 {[%clk 00:10:11]} {[%emt 00:00:03]} c5 {[%clk 00:10:09]}
{[%emt 00:00:04]} 3. d5 {[%clk 00:10:14]} {[%emt 00:00:02]} b5 {[%clk
00:10:12]} {[%emt 00:00:01]} 4. b3 {[%clk 00:09:52]} {[%emt 00:00:27]} g6
{[%clk 00:10:15]} {[%emt 00:00:02]} 5. Bb2 {[%clk 00:09:50]} {[%emt 00:00:08]}
Bg7 {[%clk 00:10:17]} {[%emt 00:00:02]} 6. e4 {[%clk 00:09:18]} {[%emt
00:00:38]} d6 {[%clk 00:09:54]} {[%emt 00:00:27]} 7. Bd3 {[%clk 00:09:07]}
{[%emt 00:00:16]} O-O {[%clk 00:09:55]} {[%emt 00:00:02]} 8. Ne2 {[%clk
00:09:09]} {[%emt 00:00:05]} b4 {[%clk 00:09:42]} {[%emt 00:00:18]} 9. O-O
{[%clk 00:09:05]} {[%emt 00:00:08]} a5 {[%clk 00:07:35]} {[%emt 00:02:13]} 10.
a4 {[%clk 00:08:46]} {[%emt 00:00:23]} e6 {[%clk 00:07:24]} {[%emt 00:00:16]}
11. Qc2 {[%clk 00:08:21]} {[%emt 00:00:30]} exd5 {[%clk 00:07:10]} {[%emt
00:00:20]} 12. exd5 {[%clk 00:08:22]} {[%emt 00:00:05]} Re8 {[%clk 00:07:01]}
{[%emt 00:00:14]} 13. Nd2 {[%clk 00:08:09]} {[%emt 00:00:18]} Nbd7 {[%clk
00:06:37]} {[%emt 00:00:29]} 14. Rae1 {[%clk 00:07:32]} {[%emt 00:00:41]} Ne5
{[%clk 00:06:18]} {[%emt 00:00:24]} 15. Bxe5 {[%clk 00:06:41]} {[%emt
00:00:56]} Rxe5 {[%clk 00:06:21]} {[%emt 00:00:02]} 16. Ng3 {[%clk 00:06:08]}
{[%emt 00:00:39]} Ng4 {[%clk 00:06:18]} {[%emt 00:00:08]} 17. h3 {[%clk
00:05:48]} {[%emt 00:00:25]} Rxe1 {[%clk 00:06:20]} {[%emt 00:00:02]} 18. Rxe1
{[%clk 00:05:51]} {[%emt 00:00:03]} Ne5 {[%clk 00:06:11]} {[%emt 00:00:13]} 19.
Bf1 {[%clk 00:05:42]} {[%emt 00:00:15]} h5 {[%clk 00:05:12]} {[%emt 00:01:04]}
20. Nde4 {[%clk 00:04:42]} {[%emt 00:01:06]} h4 {[%clk 00:05:09]} {[%emt
00:00:07]} 21. Ne2 {[%clk 00:04:39]} {[%emt 00:00:08]} Bf5 {[%clk 00:05:01]}
{[%emt 00:00:13]} 22. f3 {[%clk 00:04:15]} {[%emt 00:00:29]} g5 {[%clk
00:03:50]} {[%emt 00:01:16]} 23. Nc1 {[%clk 00:03:50]} {[%emt 00:00:30]} Ra7
{[%clk 00:03:22]} {[%emt 00:00:34]} 24. Nd3 {[%clk 00:03:30]} {[%emt 00:00:24]}
Ng6 {[%clk 00:03:12]} {[%emt 00:00:14]} 25. Qc1 {[%clk 00:03:18]} {[%emt
00:00:18]} Bd4+ {[%clk 00:02:46]} {[%emt 00:00:31]} 26. Kh1 {[%clk 00:03:05]}
{[%emt 00:00:18]} Bxe4 {[%clk 00:02:41]} {[%emt 00:00:09]} 27. Rxe4 {[%clk
00:03:04]} {[%emt 00:00:06]} Kg7 {[%clk 00:02:06]} {[%emt 00:00:40]} 28. Qe1
{[%clk 00:02:57]} {[%emt 00:00:12]} Re7 {[%clk 00:02:01]} {[%emt 00:00:10]} 29.
Rxe7 {[%clk 00:02:55]} {[%emt 00:00:06]} Qxe7 {[%clk 00:01:55]} {[%emt
00:00:10]} 30. Qxe7 {[%clk 00:02:47]} {[%emt 00:00:14]} Nxe7 {[%clk 00:01:59]}
{[%emt 00:00:01]} 31. Nc1 {[%clk 00:02:29]} {[%emt 00:00:22]} Be3 {[%clk
00:01:51]} {[%emt 00:00:13]} 32. Nd3 {[%clk 00:02:19]} {[%emt 00:00:15]} Nf5
{[%clk 00:01:51]} {[%emt 00:00:05]} 33. g4 {[%clk 00:01:36]} {[%emt 00:00:47]}
hxg3 {[%clk 00:01:45]} {[%emt 00:00:11]} 34. Kg2 {[%clk 00:01:40]} {[%emt
00:00:01]} Bf4 {[%clk 00:01:45]} {[%emt 00:00:05]} 35. Nxf4 {[%clk 00:01:35]}
{[%emt 00:00:10]} gxf4 {[%clk 00:01:49]} {[%emt 00:00:01]} 36. Bd3 {[%clk
00:01:25]} {[%emt 00:00:15]} Nh4+ {[%clk 00:01:52]} {[%emt 00:00:01]} 37. Kf1
{[%clk 00:01:25]} {[%emt 00:00:05]} Nxf3 {[%clk 00:01:55]} {[%emt 00:00:03]} 38.
Kg2 {[%clk 00:01:26]} {[%emt 00:00:04]} Ne1+ {[%clk 00:01:58]} {[%emt
00:00:01]} 0-1

[Event "IV Pullman Rapid 2022"]
[Site "Riga, Latvia"]
[Date "2022.02.19"]
[Round "1.4"]
[White "Kretainis, Kristaps"]
[Black "Eglitis, Roberts"]
[Result "1-0"]
[TimeControl "600+5"]
[WhiteElo "2157"]
[BlackElo "1416"]

1. e4 {[%clk 00:10:08]} {[%emt 00:00:02]} Nf6 {[%clk 00:10:08]} {[%emt
00:00:02]} 2. e5 {[%clk 00:10:12]} Nd5 {[%clk 00:10:12]} {[%emt 00:00:02]} 3.
d4 {[%clk 00:10:16]} d6 {[%clk 00:10:15]} {[%emt 00:00:01]} 4. Nf3 {[%clk
00:10:21]} Bg4 {[%clk 00:10:19]} {[%emt 00:00:03]} 5. Be2 {[%clk 00:10:25]}
{[%emt 00:00:01]} Nc6 {[%clk 00:10:09]} {[%emt 00:00:14]} 6. c4 {[%clk
00:10:27]} {[%emt 00:00:02]} Nb6 {[%clk 00:10:13]} {[%emt 00:00:02]} 7. e6
{[%clk 00:10:30]} {[%emt 00:00:02]} fxe6 {[%clk 00:10:09]} {[%emt 00:00:09]} 8.
Be3 {[%clk 00:10:16]} {[%emt 00:00:20]} g6 {[%clk 00:08:11]} {[%emt 00:02:03]}
9. Ng5 {[%clk 00:10:10]} {[%emt 00:00:11]} Bxe2 {[%clk 00:08:09]} {[%emt
00:00:07]} 10. Qxe2 {[%clk 00:10:13]} {[%emt 00:00:01]} Qd7 {[%clk 00:07:48]}
{[%emt 00:00:26]} 11. Qf3 {[%clk 00:10:16]} {[%emt 00:00:02]} Bh6 {[%clk
00:07:14]} {[%emt 00:00:40]} 12. Qf7+ {[%clk 00:10:16]} {[%emt 00:00:05]} Kd8
{[%emt 00:00:08]} 13. Nxe6+ {[%emt 00:00:02]} Kc8 14. Bxh6 {[%emt 00:00:03]}
Nxc4 {[%emt 00:00:04]} 15. Nf8 {[%emt 00:00:23]} Qf5 {[%clk 00:06:32]} {[%emt
00:00:48]} 16. Qxc4 {[%clk 00:10:03]} {[%emt 00:00:08]} Rxf8 {[%clk 00:06:32]}
{[%emt 00:00:05]} 17. Bxf8 {[%clk 00:10:06]} {[%emt 00:00:02]} Qxf8 {[%emt
00:00:01]} 18. O-O {[%emt 00:00:05]} Qf6 {[%clk 00:06:20]} {[%emt 00:00:21]} 19.
Qg8+ {[%clk 00:10:06]} {[%emt 00:00:05]} Nd8 {[%clk 00:06:24]} {[%emt
00:00:02]} 20. Nc3 {[%clk 00:10:01]} {[%emt 00:00:09]} Qxd4 {[%clk 00:06:09]}
{[%emt 00:00:19]} 21. Rfe1 {[%clk 00:09:51]} {[%emt 00:00:15]} e5 {[%clk
00:06:04]} {[%emt 00:00:10]} 22. Rad1 {[%emt 00:00:02]} Qh4 {[%emt 00:00:11]}
23. Rxe5 {[%emt 00:00:12]} b6 {[%clk 00:05:52]} {[%emt 00:00:11]} 24. Re8
{[%emt 00:00:09]} Kd7 {[%emt 00:01:26]} 25. Rde1 {[%clk 00:09:36]} {[%emt
00:00:11]} a5 {[%clk 00:03:36]} {[%emt 00:01:00]} 26. Nd5 {[%clk 00:09:04]}
{[%emt 00:00:37]} a4 {[%clk 00:03:22]} {[%emt 00:00:20]} 27. R8e7+ {[%clk
00:08:34]} {[%emt 00:00:35]} Kc6 {[%clk 00:03:19]} {[%emt 00:00:08]} 28. Rxc7+
{[%clk 00:08:32]} {[%emt 00:00:07]} Kb5 {[%clk 00:03:19]} {[%emt 00:00:04]} 29.
Nc3+ {[%clk 00:08:23]} {[%emt 00:00:14]} Ka6 {[%clk 00:03:07]} {[%emt
00:00:18]} 30. Qd5 {[%emt 00:00:05]} Qxf2+ {[%emt 00:03:08]} 31. Kxf2 {[%emt
00:00:02]} 1-0

[Event "IV Pullman Rapid 2022"]
[Site "Riga, Latvia"]
[Date "2022.02.19"]
[Round "2.1"]
[White "Shirov, Alexei"]
[Black "Vasiljeva, Sofja"]
[Result "1-0"]
[TimeControl "600+5"]
[WhiteTitle "GM"]
[WhiteElo "2614"]
[BlackElo "1679"]

1. e4 {[%clk 00:10:08]} e5 {[%clk 00:10:09]} {[%emt 00:00:02]} 2. Nf3 {[%clk
00:10:12]} {[%emt 00:00:01]} Nc6 {[%clk 00:10:12]} {[%emt 00:00:02]} 3. Bb5
{[%clk 00:10:15]} {[%emt 00:00:01]} Nf6 {[%clk 00:10:14]} {[%emt 00:00:04]} 4.
O-O {[%clk 00:10:12]} {[%emt 00:00:08]} Nxe4 {[%clk 00:10:17]} {[%emt
00:00:02]} 5. d4 {[%clk 00:10:15]} {[%emt 00:00:02]} Nd6 {[%clk 00:10:20]}
{[%emt 00:00:02]} 6. Bxc6 {[%clk 00:10:18]} {[%emt 00:00:03]} dxc6 {[%clk
00:10:24]} {[%emt 00:00:02]} 7. dxe5 {[%clk 00:10:21]} {[%emt 00:00:02]} Nf5
{[%clk 00:10:27]} {[%emt 00:00:01]} 8. Qxd8+ {[%clk 00:10:22]} {[%emt
00:00:04]} Kxd8 {[%clk 00:10:31]} {[%emt 00:00:01]} 9. h3 {[%clk 00:10:25]}
{[%emt 00:00:01]} Bd7 {[%clk 00:10:31]} {[%emt 00:00:06]} 10. Rd1 {[%clk
00:10:21]} {[%emt 00:00:08]} Kc8 {[%clk 00:10:05]} {[%emt 00:00:31]} 11. g4
{[%clk 00:10:19]} {[%emt 00:00:07]} Ne7 {[%clk 00:09:40]} {[%emt 00:00:31]} 12.
Ng5 {[%clk 00:10:17]} {[%emt 00:00:06]} Be8 {[%clk 00:09:36]} {[%emt 00:00:10]}
13. f4 {[%clk 00:10:20]} {[%emt 00:00:01]} Nd5 {[%clk 00:09:03]} {[%emt
00:00:38]} 14. c4 {[%clk 00:08:44]} {[%emt 00:01:41]} Bc5+ {[%clk 00:08:58]}
{[%emt 00:00:10]} 15. Kg2 {[%clk 00:08:47]} {[%emt 00:00:01]} Ne3+ {[%clk
00:07:20]} {[%emt 00:01:44]} 16. Bxe3 {[%clk 00:08:50]} {[%emt 00:00:02]} Bxe3
{[%clk 00:07:24]} {[%emt 00:00:01]} 17. Kf3 {[%clk 00:08:51]} {[%emt 00:00:03]}
Bc5 {[%clk 00:07:24]} {[%emt 00:00:06]} 18. Nc3 {[%clk 00:08:39]} {[%emt
00:00:16]} b6 {[%clk 00:06:41]} {[%emt 00:00:48]} 19. e6 {[%clk 00:06:44]}
{[%emt 00:02:00]} f6 {[%clk 00:05:54]} {[%emt 00:00:53]} 20. Nge4 {[%clk
00:06:46]} {[%emt 00:00:01]} Be7 {[%clk 00:05:57]} {[%emt 00:00:02]} 21. c5
{[%clk 00:06:46]} {[%emt 00:00:05]} Kb7 {[%clk 00:05:49]} {[%emt 00:00:14]} 22.
Nd6+ {[%clk 00:06:25]} {[%emt 00:00:26]} cxd6 {[%clk 00:04:08]} {[%emt
00:01:46]} 23. cxd6 {[%clk 00:06:28]} {[%emt 00:00:02]} Bxd6 {[%clk 00:04:12]}
{[%emt 00:00:02]} 24. Rxd6 {[%clk 00:06:31]} {[%emt 00:00:01]} Kc7 {[%clk
00:04:16]} {[%emt 00:00:01]} 25. Rad1 {[%clk 00:06:30]} {[%emt 00:00:05]} h5
{[%clk 00:04:19]} {[%emt 00:00:03]} 26. Rd7+ {[%clk 00:06:27]} {[%emt
00:00:08]} Bxd7 {[%clk 00:04:10]} {[%emt 00:00:14]} 27. Rxd7+ {[%clk 00:06:30]}
{[%emt 00:00:02]} Kc8 {[%clk 00:03:59]} {[%emt 00:00:17]} 28. Ne4 {[%clk
00:06:33]} {[%emt 00:00:02]} hxg4+ {[%clk 00:03:26]} {[%emt 00:00:38]} 29. hxg4
{[%clk 00:06:33]} {[%emt 00:00:04]} 1-0

[Event "IV Pullman Rapid 2022"]
[Site "Riga, Latvia"]
[Date "2022.02.19"]
[Round "2.2"]
[White "Birmans, Daniels"]
[Black "Mustaps, Matiss"]
[Result "0-1"]
[TimeControl "600+5"]
[BlackTitle "FM"]
[WhiteElo "1657"]
[BlackElo "2393"]

1. e4 {[%clk 00:10:08]} c5 {[%clk 00:10:08]} {[%emt 00:00:03]} 2. Nf3 {[%clk
00:10:11]} {[%emt 00:00:02]} d6 {[%clk 00:10:11]} {[%emt 00:00:02]} 3. Bb5+
{[%clk 00:10:14]} {[%emt 00:00:03]} Bd7 {[%clk 00:10:15]} 4. Bxd7+ {[%clk
00:10:16]} {[%emt 00:00:02]} Qxd7 {[%clk 00:10:19]} 5. O-O {[%clk 00:10:11]}
{[%emt 00:00:10]} Nf6 {[%clk 00:10:23]} 6. Re1 {[%clk 00:10:12]} {[%emt
00:00:05]} Nc6 {[%clk 00:10:27]} {[%emt 00:00:02]} 7. c3 {[%clk 00:10:13]}
{[%emt 00:00:04]} g6 {[%clk 00:10:00]} {[%emt 00:00:32]} 8. d4 {[%clk
00:10:01]} {[%emt 00:00:16]} cxd4 {[%clk 00:09:57]} {[%emt 00:00:08]} 9. cxd4
{[%clk 00:09:56]} {[%emt 00:00:11]} Bg7 {[%clk 00:10:01]} 10. Nc3 {[%clk
00:09:59]} {[%emt 00:00:02]} O-O {[%clk 00:10:05]} {[%emt 00:00:01]} 11. h3
{[%clk 00:09:29]} {[%emt 00:00:34]} Rfd8 {[%clk 00:10:06]} {[%emt 00:00:04]} 12.
Bf4 {[%clk 00:08:21]} {[%emt 00:01:13]} Rac8 {[%clk 00:09:59]} {[%emt
00:00:13]} 13. Qd2 {[%clk 00:08:07]} {[%emt 00:00:18]} d5 {[%clk 00:09:36]}
{[%emt 00:00:28]} 14. e5 {[%clk 00:07:05]} {[%emt 00:01:07]} Ne4 {[%clk
00:09:40]} {[%emt 00:00:01]} 15. Nxe4 {[%clk 00:06:35]} {[%emt 00:00:34]} dxe4
{[%clk 00:09:44]} {[%emt 00:00:02]} 16. Rxe4 {[%clk 00:06:23]} {[%emt
00:00:17]} Qd5 {[%clk 00:09:48]} {[%emt 00:00:01]} 17. Re2 {[%clk 00:04:12]}
{[%emt 00:02:16]} Nxd4 {[%clk 00:09:48]} {[%emt 00:00:05]} 18. Qxd4 {[%clk
00:04:08]} {[%emt 00:00:09]} Qxd4 {[%clk 00:09:51]} {[%emt 00:00:01]} 19. Nxd4
{[%clk 00:04:12]} {[%emt 00:00:02]} Rxd4 {[%clk 00:09:55]} {[%emt 00:00:01]} 20.
Bg3 {[%clk 00:02:17]} {[%emt 00:02:00]} e6 {[%clk 00:09:47]} {[%emt 00:00:13]}
21. Rae1 {[%clk 00:02:10]} {[%emt 00:00:11]} Kf8 {[%clk 00:09:43]} {[%emt
00:00:10]} 22. Re4 {[%clk 00:02:03]} {[%emt 00:00:13]} Rd2 {[%clk 00:09:28]}
{[%emt 00:00:19]} 23. Rb4 {[%clk 00:01:32]} {[%emt 00:00:37]} b6 {[%clk
00:09:31]} {[%emt 00:00:02]} 24. a4 {[%clk 00:01:24]} {[%emt 00:00:13]} Ke8
{[%clk 00:09:25]} {[%emt 00:00:11]} 25. Rb5 {[%clk 00:00:47]} {[%emt 00:00:42]}
Bf8 {[%clk 00:09:13]} {[%emt 00:00:17]} 26. b4 {[%clk 00:00:30]} {[%emt
00:00:23]} Rb2 {[%clk 00:09:14]} {[%emt 00:00:04]} 27. Re4 {[%clk 00:00:09]}
{[%emt 00:00:26]} g5 {[%clk 00:08:53]} {[%emt 00:00:26]} 28. h4 {[%clk
00:00:09]} {[%emt 00:00:04]} h6 {[%clk 00:08:56]} {[%emt 00:00:02]} 29. hxg5
{[%clk 00:00:06]} {[%emt 00:00:09]} hxg5 {[%clk 00:09:00]} 30. f4 {[%clk
00:00:10]} {[%emt 00:00:02]} Rcc2 {[%clk 00:08:59]} {[%emt 00:00:05]} 31. fxg5
{[%clk 00:00:06]} {[%emt 00:00:09]} Rxg2+ {[%clk 00:09:02]} {[%emt 00:00:02]}
0-1